[Event "MČR družstev mladších žáků 2024"]
[Site "Harrachov, Czech Republic"]
[Date "2024.06.16"]
[Round "8.16"]
[White "Jenikova Sabina"]
[Black "Zavrel Daniel"]
[Result "1-0"]
[TimeControl "25+10"]
[WhiteFideId "23759860"]
[BlackFideId "23753951"]
[WhiteElo "1114"]
[BlackElo "1106"]

1. d4 {[%clk 00:25:12]} {[%emt 00:00:08]} d5 {[%clk 00:25:19]} {[%emt
00:00:02]} 2. Bf4 {[%clk 00:25:19]} {[%emt 00:00:03]} Bf5 {[%clk 00:25:26]}
{[%emt 00:00:03]} 3. Nf3 {[%clk 00:25:24]} {[%emt 00:00:04]} Nc6 {[%clk
00:25:32]} {[%emt 00:00:03]} 4. e3 {[%clk 00:25:30]} {[%emt 00:00:05]} a6
{[%clk 00:25:38]} {[%emt 00:00:04]} 5. Bd3 {[%clk 00:25:17]} {[%emt 00:00:23]}
Bg6 {[%clk 00:25:43]} {[%emt 00:00:05]} 6. c3 {[%clk 00:25:18]} {[%emt
00:00:09]} Nf6 {[%clk 00:25:47]} {[%emt 00:00:06]} 7. O-O {[%clk 00:25:04]}
{[%emt 00:00:24]} e6 {[%clk 00:25:46]} {[%emt 00:00:11]} 8. Qc2 {[%clk
00:25:09]} {[%emt 00:00:05]} Bd6 {[%clk 00:25:50]} {[%emt 00:00:06]} 9. Bg3
{[%clk 00:25:17]} {[%emt 00:00:02]} Qd7 {[%clk 00:25:38]} {[%emt 00:00:21]} 10.
Nbd2 {[%clk 00:25:16]} {[%emt 00:00:13]} O-O-O {[%clk 00:25:13]} {[%emt
00:00:34]} 11. Rfe1 {[%clk 00:24:06]} {[%emt 00:01:20]} Rhe8 {[%clk 00:24:00]}
{[%emt 00:01:23]} 12. e4 {[%clk 00:21:47]} {[%emt 00:02:29]} dxe4 {[%clk
00:19:40]} {[%emt 00:04:30]} 13. Nxe4 {[%clk 00:20:21]} {[%emt 00:01:36]} Nxe4
{[%clk 00:17:10]} {[%emt 00:02:41]} 14. Bxe4 {[%clk 00:20:23]} {[%emt
00:00:08]} Bxg3 {[%clk 00:17:08]} {[%emt 00:00:11]} 15. fxg3 {[%clk 00:20:21]}
{[%emt 00:00:12]} f5 {[%clk 00:16:19]} {[%emt 00:01:00]} 16. Bxc6 {[%clk
00:19:15]} {[%emt 00:01:17]} Qxc6 {[%clk 00:16:08]} {[%emt 00:00:20]} 17. Ne5
{[%clk 00:19:17]} {[%emt 00:00:08]} Qd6 {[%clk 00:15:48]} {[%emt 00:00:28]} 18.
Qd2 {[%clk 00:16:10]} {[%emt 00:03:20]} Kb8 {[%clk 00:10:56]} {[%emt 00:05:02]}
19. Qg5 {[%clk 00:12:32]} {[%emt 00:03:47]} Qb6 {[%clk 00:09:07]} {[%emt
00:01:57]} 20. Re2 {[%clk 00:11:33]} {[%emt 00:01:13]} Qb5 {[%clk 00:08:18]}
{[%emt 00:00:49]} 21. Rae1 {[%clk 00:10:50]} {[%emt 00:00:59]} Qa4 {[%clk
00:06:26]} {[%emt 00:02:02]} 22. Nxg6 {[%clk 00:05:47]} {[%emt 00:06:06]} hxg6
{[%clk 00:05:57]} {[%emt 00:00:09]} 23. Rxe6 {[%clk 00:05:51]} {[%emt
00:00:07]} Rxe6 {[%clk 00:05:51]} {[%emt 00:00:16]} 24. Qxd8+ {[%clk 00:05:49]}
{[%emt 00:00:12]} Ka7 {[%clk 00:05:52]} {[%emt 00:00:08]} 25. Rxe6 {[%clk
00:05:53]} {[%emt 00:00:07]} Qxa2 {[%clk 00:05:55]} {[%emt 00:00:07]} 26. Re2
{[%clk 00:05:38]} {[%emt 00:00:24]} Qb1+ {[%clk 00:05:50]} {[%emt 00:00:10]} 27.
Kf2 {[%clk 00:05:46]} {[%emt 00:00:09]} Qd3 {[%clk 00:05:39]} {[%emt 00:00:19]}
28. Qxc7 {[%clk 00:05:27]} {[%emt 00:00:30]} Qb5 {[%clk 00:05:26]} {[%emt
00:00:20]} 29. Qc5+ {[%clk 00:05:26]} {[%emt 00:00:12]} Qxc5 {[%clk 00:05:23]}
{[%emt 00:00:14]} 30. dxc5 {[%clk 00:05:34]} {[%emt 00:00:03]} a5 {[%clk
00:05:30]} {[%emt 00:00:02]} 31. Re7 {[%clk 00:05:33]} {[%emt 00:00:11]} Ka6
{[%clk 00:05:38]} {[%emt 00:00:02]} 32. Rxg7 {[%clk 00:05:35]} {[%emt
00:00:07]} Kb5 {[%clk 00:05:47]} 33. Rxb7+ {[%clk 00:05:38]} {[%emt 00:00:10]}
Kxc5 {[%clk 00:05:55]} {[%emt 00:00:02]} 34. Ke3 {[%clk 00:05:39]} {[%emt
00:00:08]} Kd5 {[%clk 00:06:00]} {[%emt 00:00:04]} 35. Rb5+ {[%clk 00:05:47]}
{[%emt 00:00:03]} Ke6 {[%clk 00:06:08]} {[%emt 00:00:02]} 36. Rxa5 {[%clk
00:05:40]} {[%emt 00:00:16]} Kf6 {[%clk 00:06:16]} {[%emt 00:00:02]} 37. Kf4
{[%clk 00:05:47]} {[%emt 00:00:02]} g5+ {[%clk 00:06:25]} {[%emt 00:00:02]} 38.
Ke3 {[%clk 00:05:51]} {[%emt 00:00:06]} g4 {[%clk 00:06:34]} {[%emt 00:00:01]}
39. Kf4 {[%clk 00:05:53]} {[%emt 00:00:09]} Ke6 {[%clk 00:06:41]} {[%emt
00:00:03]} 40. Rxf5 {[%clk 00:06:00]} {[%emt 00:00:04]} Kd6 {[%clk 00:06:48]}
{[%emt 00:00:02]} 41. Ke4 {[%clk 00:06:05]} {[%emt 00:00:05]} Kc6 {[%clk
00:06:54]} {[%emt 00:00:04]} 42. Kd4 {[%clk 00:06:13]} {[%emt 00:00:01]} Kb6
{[%clk 00:07:03]} {[%emt 00:00:01]} 43. Kc4 {[%clk 00:06:16]} {[%emt 00:00:07]}
Ka6 {[%clk 00:07:12]} {[%emt 00:00:01]} 44. Kb4 {[%clk 00:06:23]} {[%emt
00:00:02]} Kb6 {[%clk 00:07:19]} {[%emt 00:00:02]} 45. Rf6+ {[%clk 00:06:32]}
{[%emt 00:00:01]} Kc7 {[%clk 00:07:29]} 46. Kb5 {[%clk 00:06:41]} {[%emt
00:00:02]} Kd7 {[%clk 00:07:36]} {[%emt 00:00:03]} 47. Kc5 {[%clk 00:06:48]}
{[%emt 00:00:03]} Ke7 {[%clk 00:07:45]} {[%emt 00:00:01]} 48. Ra6 {[%clk
00:06:55]} {[%emt 00:00:02]} 1-0



[ePGN "0.1;DGT LiveChess/2.2.6"]

[Event "MČR družstev mladších žáků 2024"]
[Site "Harrachov, Czech Republic"]
[Date "2024.06.16"]
[Round "8.19"]
[White "Lickova Anna"]
[Black "Fadrny Jachym"]
[Result "1/2-1/2"]
[TimeControl "25+10"]
[WhiteFideId "23744359"]
[BlackFideId "23744170"]
[WhiteElo "1377"]
[BlackElo "1537"]

1. e4 {[%clk 00:25:17]} {[%emt 00:00:01]} e6 {[%clk 00:25:15]} {[%emt
00:00:06]} 2. d4 {[%clk 00:25:26]} {[%emt 00:00:02]} d5 {[%clk 00:25:23]}
{[%emt 00:00:01]} 3. Bd3 {[%clk 00:25:34]} {[%emt 00:00:02]} Ne7 {[%clk
00:24:57]} {[%emt 00:00:36]} 4. Nc3 {[%clk 00:24:51]} {[%emt 00:00:54]} Nbc6
{[%clk 00:24:44]} {[%emt 00:00:23]} 5. Nf3 {[%clk 00:23:18]} {[%emt 00:01:42]}
Ng6 {[%clk 00:24:15]} {[%emt 00:00:38]} 6. Bb5 {[%clk 00:21:35]} {[%emt
00:01:53]} Bb4 {[%clk 00:23:47]} {[%emt 00:00:39]} 7. Ne5 {[%clk 00:14:59]}
{[%emt 00:06:47]} Ngxe5 {[%clk 00:22:38]} {[%emt 00:01:18]} 8. dxe5 {[%clk
00:14:10]} {[%emt 00:00:58]} O-O {[%clk 00:22:33]} {[%emt 00:00:15]} 9. O-O
{[%clk 00:07:38]} {[%emt 00:06:43]} Bxc3 {[%clk 00:21:51]} {[%emt 00:00:52]} 10.
bxc3 {[%clk 00:06:12]} {[%emt 00:01:37]} Nxe5 {[%clk 00:21:51]} {[%emt
00:00:09]} 11. Ba3 {[%clk 00:06:13]} {[%emt 00:00:10]} a6 {[%clk 00:19:22]}
{[%emt 00:02:38]} 12. Bxf8 {[%clk 00:04:29]} {[%emt 00:01:54]} Qxf8 {[%clk
00:17:06]} {[%emt 00:02:26]} 13. Bd3 {[%clk 00:03:49]} {[%emt 00:00:50]} Bd7
{[%clk 00:16:01]} {[%emt 00:01:16]} 14. exd5 {[%clk 00:03:30]} {[%emt
00:00:29]} Nxd3 {[%clk 00:16:02]} {[%emt 00:00:08]} 15. cxd3 {[%clk 00:01:20]}
{[%emt 00:02:20]} exd5 {[%clk 00:16:10]} {[%emt 00:00:02]} 16. Qb3 {[%clk
00:01:02]} {[%emt 00:00:28]} Bc6 {[%clk 00:16:15]} {[%emt 00:00:05]} 17. Rfe1
{[%clk 00:01:04]} {[%emt 00:00:08]} Qd6 {[%clk 00:16:11]} {[%emt 00:00:14]} 18.
Qb4 {[%clk 00:00:47]} {[%emt 00:00:27]} Qg6 {[%clk 00:16:13]} {[%emt 00:00:07]}
19. d4 {[%clk 00:00:34]} {[%emt 00:00:25]} h6 {[%clk 00:15:44]} {[%emt
00:00:39]} 20. Qe7 {[%clk 00:00:31]} {[%emt 00:00:12]} Rc8 {[%clk 00:15:02]}
{[%emt 00:00:51]} 21. Qe5 {[%clk 00:00:21]} {[%emt 00:00:21]} Qc2 {[%clk
00:14:02]} {[%emt 00:01:08]} 22. Rec1 {[%clk 00:00:13]} {[%emt 00:00:20]} Qb2
{[%clk 00:13:27]} {[%emt 00:00:44]} 23. Qe1 {[%clk 00:00:12]} {[%emt 00:00:11]}
Re8 {[%clk 00:13:19]} {[%emt 00:00:18]} 24. Qf1 {[%clk 00:00:14]} {[%emt
00:00:09]} Bb5 {[%clk 00:13:20]} {[%emt 00:00:09]} 25. Qd1 {[%clk 00:00:16]}
{[%emt 00:00:09]} Re2 {[%clk 00:12:20]} {[%emt 00:01:09]} 26. Qb3 {[%clk
00:00:15]} {[%emt 00:00:11]} Qd2 {[%clk 00:11:13]} {[%emt 00:01:16]} 27. Rf1
{[%clk 00:00:17]} {[%emt 00:00:09]} Qg5 {[%clk 00:10:31]} {[%emt 00:00:52]} 28.
Rae1 {[%clk 00:00:18]} {[%emt 00:00:09]} Rd2 {[%clk 00:10:23]} {[%emt
00:00:18]} 29. c4 {[%clk 00:00:14]} {[%emt 00:00:15]} dxc4 {[%clk 00:10:00]}
{[%emt 00:00:32]} 30. Qe3 {[%clk 00:00:19]} {[%emt 00:00:05]} c3 {[%clk
00:09:51]} {[%emt 00:00:17]} 31. h4 {[%clk 00:00:13]} {[%emt 00:00:18]} Qxe3
{[%clk 00:08:48]} {[%emt 00:01:13]} 32. Rxe3 {[%clk 00:00:13]} {[%emt
00:00:10]} Bxf1 {[%clk 00:08:56]} {[%emt 00:00:02]} 33. Rxc3 {[%clk 00:00:16]}
{[%emt 00:00:07]} Bb5 {[%clk 00:08:59]} {[%emt 00:00:06]} 34. Rxc7 {[%clk
00:00:24]} {[%emt 00:00:03]} Rxd4 {[%clk 00:09:06]} {[%emt 00:00:03]} 35. Rxb7
{[%clk 00:00:20]} {[%emt 00:00:14]} Rxh4 {[%clk 00:09:14]} {[%emt 00:00:01]} 36.
Rb8+ {[%clk 00:00:17]} {[%emt 00:00:14]} Kh7 {[%clk 00:09:22]} {[%emt
00:00:01]} 37. Ra8 {[%clk 00:00:23]} {[%emt 00:00:05]} Ra4 {[%clk 00:09:29]}
{[%emt 00:00:02]} 38. Ra7 {[%clk 00:00:30]} {[%emt 00:00:04]} Kg6 {[%clk
00:09:35]} {[%emt 00:00:04]} 39. Kh2 {[%clk 00:00:12]} {[%emt 00:00:28]} Rxa2
{[%clk 00:09:43]} {[%emt 00:00:01]} 40. f4 {[%clk 00:00:12]} {[%emt 00:00:11]}
Bf1 {[%clk 00:09:33]} {[%emt 00:00:19]} 41. f5+ {[%clk 00:00:18]} {[%emt
00:00:05]} Kf6 {[%clk 00:09:35]} {[%emt 00:00:08]} 42. Kg1 {[%clk 00:00:18]}
{[%emt 00:00:11]} Bxg2 {[%clk 00:09:42]} {[%emt 00:00:03]} 43. Rd7 {[%clk
00:00:13]} {[%emt 00:00:15]} Bh3 {[%clk 00:09:32]} {[%emt 00:00:19]} 44. Rd6+
{[%clk 00:00:14]} {[%emt 00:00:09]} Ke7 {[%clk 00:09:39]} {[%emt 00:00:03]} 45.
Rd5 {[%clk 00:00:14]} {[%emt 00:00:10]} a5 {[%clk 00:09:24]} {[%emt 00:00:25]}
46. Rd3 {[%clk 00:00:14]} {[%emt 00:00:10]} Bxf5 {[%clk 00:09:30]} {[%emt
00:00:04]} 47. Re3+ {[%clk 00:00:12]} {[%emt 00:00:12]} Kf6 {[%clk 00:09:38]}
{[%emt 00:00:02]} 48. Kf1 {[%clk 00:00:12]} {[%emt 00:00:09]} a4 {[%clk
00:09:47]} {[%emt 00:00:02]} 49. Ke1 {[%clk 00:00:12]} {[%emt 00:00:10]} a3
{[%clk 00:09:55]} {[%emt 00:00:02]} 50. Kd1 {[%clk 00:00:12]} {[%emt 00:00:11]}
Ra1+ {[%clk 00:10:01]} {[%emt 00:00:04]} 51. Kd2 {[%clk 00:00:11]} {[%emt
00:00:09]} a2 {[%clk 00:10:09]} {[%emt 00:00:02]} 52. Ra3 {[%clk 00:00:15]}
{[%emt 00:00:07]} Rh1 {[%clk 00:10:17]} {[%emt 00:00:02]} 53. Ke3 {[%clk
00:00:13]} {[%emt 00:00:12]} a1=Q {[%clk 00:10:25]} {[%emt 00:00:02]} 54. Rxa1
{[%clk 00:00:13]} {[%emt 00:00:10]} Rxa1 {[%clk 00:10:32]} {[%emt 00:00:02]} 55.
Kf4 {[%clk 00:00:11]} {[%emt 00:00:12]} g5+ {[%clk 00:10:39]} {[%emt 00:00:04]}
56. Kf3 {[%clk 00:00:12]} {[%emt 00:00:09]} g4+ {[%clk 00:10:47]} {[%emt
00:00:02]} 57. Kf4 {[%clk 00:00:13]} {[%emt 00:00:09]} Ra3 {[%clk 00:10:56]}
{[%emt 00:00:02]} 1/2-1/2



[ePGN "0.1;DGT LiveChess/2.2.6"]

[Event "MČR družstev mladších žáků 2024"]
[Site "Harrachov, Czech Republic"]
[Date "2024.06.16"]
[Round "8.2"]
[White "Artamonov Mikhail"]
[Black "Bilek Filip"]
[Result "1-0"]
[TimeControl "25+10"]
[WhiteFideId "23732946"]
[BlackFideId "23763493"]
[WhiteElo "1515"]
[BlackElo "1249"]

1. d4 {[%clk 00:25:17]} {[%emt 00:00:02]} Nf6 {[%clk 00:25:15]} {[%emt
00:00:05]} 2. Nf3 {[%clk 00:25:26]} {[%emt 00:00:02]} e6 {[%clk 00:25:23]}
{[%emt 00:00:02]} 3. Bf4 {[%clk 00:25:27]} {[%emt 00:00:08]} d5 {[%clk
00:24:01]} {[%emt 00:01:32]} 4. e3 {[%clk 00:25:25]} {[%emt 00:00:13]} Nbd7
{[%clk 00:23:56]} {[%emt 00:00:14]} 5. Bd3 {[%clk 00:24:48]} {[%emt 00:00:47]}
c5 {[%clk 00:23:48]} {[%emt 00:00:18]} 6. c3 {[%clk 00:24:56]} {[%emt
00:00:02]} Qb6 {[%clk 00:22:36]} {[%emt 00:01:20]} 7. Qc2 {[%clk 00:20:06]}
{[%emt 00:05:01]} c4 {[%clk 00:22:09]} {[%emt 00:00:38]} 8. Be2 {[%clk
00:20:14]} {[%emt 00:00:02]} Be7 {[%clk 00:22:08]} {[%emt 00:00:10]} 9. Nbd2
{[%clk 00:19:26]} {[%emt 00:00:58]} O-O {[%clk 00:22:07]} {[%emt 00:00:10]} 10.
b3 {[%clk 00:17:11]} {[%emt 00:02:26]} cxb3 {[%clk 00:21:22]} {[%emt 00:00:55]}
11. axb3 {[%clk 00:17:18]} {[%emt 00:00:03]} Qc6 {[%clk 00:21:02]} {[%emt
00:00:27]} 12. O-O {[%clk 00:15:00]} {[%emt 00:02:32]} b5 {[%clk 00:20:29]}
{[%emt 00:00:41]} 13. Rfc1 {[%clk 00:13:57]} {[%emt 00:01:14]} Bb7 {[%clk
00:20:25]} {[%emt 00:00:11]} 14. Bf1 {[%clk 00:12:46]} {[%emt 00:01:25]} Rfc8
{[%clk 00:20:26]} {[%emt 00:00:09]} 15. Qa2 {[%clk 00:10:08]} {[%emt 00:02:48]}
a5 {[%clk 00:20:04]} {[%emt 00:00:31]} 16. c4 {[%clk 00:09:45]} {[%emt
00:00:34]} bxc4 {[%clk 00:19:47]} {[%emt 00:00:27]} 17. bxc4 {[%clk 00:09:53]}
{[%emt 00:00:02]} Bb4 {[%clk 00:19:47]} {[%emt 00:00:10]} 18. c5 {[%clk
00:09:07]} {[%emt 00:00:56]} Ba6 {[%clk 00:19:29]} {[%emt 00:00:27]} 19. Bxa6
{[%clk 00:08:19]} {[%emt 00:00:59]} Qxa6 {[%clk 00:18:03]} {[%emt 00:01:35]} 20.
Qb3 {[%clk 00:06:15]} {[%emt 00:02:15]} Ra7 {[%clk 00:17:37]} {[%emt 00:00:34]}
21. Qa4 {[%clk 00:05:25]} {[%emt 00:01:01]} Qc6 {[%clk 00:17:31]} {[%emt
00:00:14]} 22. Qxc6 {[%clk 00:05:07]} {[%emt 00:00:31]} Rxc6 {[%clk 00:17:27]}
{[%emt 00:00:14]} 23. Rcb1 {[%clk 00:05:03]} {[%emt 00:00:14]} Bc3 {[%clk
00:16:44]} {[%emt 00:00:46]} 24. Ra3 {[%clk 00:04:51]} {[%emt 00:00:29]} Bxd2
{[%clk 00:16:34]} {[%emt 00:00:20]} 25. Nxd2 {[%clk 00:05:00]} {[%emt
00:00:01]} Ra8 {[%clk 00:16:20]} {[%emt 00:00:18]} 26. Rba1 {[%clk 00:04:39]}
{[%emt 00:00:37]} Rca6 {[%clk 00:16:16]} {[%emt 00:00:13]} 27. Ra4 {[%clk
00:04:37]} {[%emt 00:00:14]} Nb8 {[%clk 00:14:06]} {[%emt 00:02:19]} 28. Bxb8
{[%clk 00:04:08]} {[%emt 00:00:39]} Rxb8 {[%clk 00:14:09]} {[%emt 00:00:07]} 29.
Rxa5 {[%clk 00:03:06]} {[%emt 00:01:13]} Rxa5 {[%clk 00:14:11]} {[%emt
00:00:07]} 30. Rxa5 {[%clk 00:03:12]} {[%emt 00:00:03]} h6 {[%clk 00:14:09]}
{[%emt 00:00:12]} 31. Ra1 {[%clk 00:02:58]} {[%emt 00:00:25]} Rb2 {[%clk
00:13:53]} {[%emt 00:00:25]} 32. Nf3 {[%clk 00:02:37]} {[%emt 00:00:32]} Ne4
{[%clk 00:13:38]} {[%emt 00:00:23]} 33. Rc1 {[%clk 00:02:24]} {[%emt 00:00:25]}
Rb8 {[%clk 00:12:44]} {[%emt 00:00:55]} 34. Ne5 {[%clk 00:01:43]} {[%emt
00:01:00]} Nd2 {[%clk 00:12:17]} {[%emt 00:00:34]} 35. c6 {[%clk 00:01:21]}
{[%emt 00:00:35]} Rc8 {[%clk 00:12:10]} {[%emt 00:00:16]} 36. Rc2 {[%clk
00:00:53]} {[%emt 00:00:40]} f6 {[%clk 00:12:02]} {[%emt 00:00:18]} 37. Nd7
{[%clk 00:00:47]} {[%emt 00:00:15]} Nc4 {[%clk 00:11:56]} {[%emt 00:00:15]} 38.
c7 {[%clk 00:00:20]} {[%emt 00:00:38]} Rxc7 {[%clk 00:11:54]} {[%emt 00:00:13]}
39. Nc5 {[%clk 00:00:24]} {[%emt 00:00:05]} Kf7 {[%clk 00:11:47]} {[%emt
00:00:16]} 40. g3 {[%emt 00:00:20]} g5 {[%clk 00:11:45]} {[%emt 00:00:12]} 41.
Kg2 {[%clk 00:00:16]} {[%emt 00:00:08]} f5 {[%clk 00:11:51]} {[%emt 00:00:03]}
42. h3 {[%clk 00:00:24]} {[%emt 00:00:03]} h5 {[%clk 00:11:51]} {[%emt
00:00:10]} 43. Ra2 {[%clk 00:00:18]} {[%emt 00:00:15]} Rc6 {[%clk 00:11:26]}
{[%emt 00:00:34]} 44. Ra7+ {[%clk 00:00:26]} {[%emt 00:00:02]} Kf6 {[%clk
00:11:32]} {[%emt 00:00:05]} 45. Rh7 {[%clk 00:00:23]} {[%emt 00:00:15]} Kg6
{[%clk 00:11:32]} {[%emt 00:00:09]} 46. Re7 {[%clk 00:00:28]} {[%emt 00:00:05]}
Kf6 {[%clk 00:11:40]} {[%emt 00:00:03]} 47. Ra7 {[%clk 00:00:29]} {[%emt
00:00:09]} Nd2 {[%clk 00:10:32]} {[%emt 00:01:16]} 48. Nd7+ {[%clk 00:00:38]}
{[%emt 00:00:03]} Kg6 {[%clk 00:10:29]} {[%emt 00:00:13]} 49. Ne5+ {[%clk
00:00:47]} {[%emt 00:00:01]} Kf6 {[%clk 00:10:35]} {[%emt 00:00:03]} 50. Rf7#
{[%clk 00:00:56]} {[%emt 00:00:01]} 1-0



[ePGN "0.1;DGT LiveChess/2.2.6"]

[Event "MČR družstev mladších žáků 2024"]
[Site "Harrachov, Czech Republic"]
[Date "2024.06.16"]
[Round "8.20"]
[White "Trejbal Jindrich"]
[Black "Havlik David"]
[Result "1-0"]
[TimeControl "25+10"]
[WhiteFideId "23743948"]
[BlackFideId "23751525"]
[WhiteElo "1401"]
[BlackElo "1348"]

1. e4 {[%clk 00:25:19]} {[%emt 00:02:00]} e5 {[%clk 00:25:18]} {[%emt
00:00:02]} 2. Nf3 {[%clk 00:25:25]} {[%emt 00:00:04]} Nf6 {[%clk 00:25:26]}
{[%emt 00:00:02]} 3. d4 {[%clk 00:25:23]} {[%emt 00:00:11]} Nxe4 {[%clk
00:24:24]} {[%emt 00:01:12]} 4. Nxe5 {[%clk 00:24:25]} {[%emt 00:01:09]} d6
{[%emt 00:02:34]} 5. Nf3 {[%emt 00:00:01]} d5 {[%clk 00:23:25]} 6. Bd3 {[%clk
00:23:30]} {[%emt 00:00:50]} Bg4 {[%clk 00:21:36]} {[%emt 00:01:59]} 7. h3
{[%clk 00:22:51]} {[%emt 00:00:49]} Bf5 {[%clk 00:19:45]} {[%emt 00:02:00]} 8.
O-O {[%clk 00:22:22]} {[%emt 00:00:40]} Be7 {[%clk 00:19:46]} {[%emt 00:00:08]}
9. Bf4 {[%clk 00:21:44]} {[%emt 00:00:48]} O-O {[%clk 00:19:28]} {[%emt
00:00:28]} 10. Nc3 {[%clk 00:21:11]} {[%emt 00:00:43]} Nxc3 {[%clk 00:15:41]}
{[%emt 00:03:58]} 11. bxc3 {[%clk 00:21:10]} {[%emt 00:00:11]} Be6 {[%clk
00:14:58]} {[%emt 00:00:51]} 12. Rb1 {[%clk 00:20:30]} {[%emt 00:00:49]} b6
{[%clk 00:14:35]} {[%emt 00:00:35]} 13. Re1 {[%clk 00:18:58]} {[%emt 00:01:42]}
h6 {[%clk 00:13:20]} {[%emt 00:01:25]} 14. Ne5 {[%clk 00:18:23]} {[%emt
00:00:45]} Bd6 {[%clk 00:11:36]} {[%emt 00:01:55]} 15. Qh5 {[%clk 00:16:46]}
{[%emt 00:01:44]} Qe7 {[%clk 00:02:01]} {[%emt 00:09:48]} 16. Bxh6 {[%clk
00:13:50]} {[%emt 00:03:05]} gxh6 {[%clk 00:00:18]} {[%emt 00:01:54]} 17. Qxh6
{[%clk 00:13:48]} {[%emt 00:00:11]} f6 {[%clk 00:00:12]} {[%emt 00:00:17]} 18.
Ng6 {[%clk 00:13:18]} {[%emt 00:00:40]} Qg7 {[%clk 00:00:12]} {[%emt 00:00:11]}
19. Qxg7+ {[%clk 00:13:15]} {[%emt 00:00:13]} Kxg7 {[%clk 00:00:21]} 20. Nxf8
{[%clk 00:13:22]} {[%emt 00:00:02]} Bxh3 {[%clk 00:00:14]} {[%emt 00:00:17]} 21.
gxh3 {[%clk 00:13:09]} {[%emt 00:00:22]} Kxf8 {[%clk 00:00:23]} {[%emt
00:00:02]} 22. Re6 {[%clk 00:13:09]} {[%emt 00:00:09]} Kf7 {[%clk 00:00:29]}
{[%emt 00:00:05]} 23. Rbe1 {[%clk 00:13:05]} {[%emt 00:00:14]} Nc6 {[%clk
00:00:36]} {[%emt 00:00:03]} 24. R6e3 {[%clk 00:12:17]} {[%emt 00:00:56]} Rg8+
{[%clk 00:00:34]} {[%emt 00:00:13]} 25. Kf1 {[%clk 00:12:07]} {[%emt 00:00:17]}
Bf4 {[%clk 00:00:15]} {[%emt 00:00:33]} 26. Re6 {[%clk 00:11:31]} {[%emt
00:00:42]} Bd6 {[%clk 00:00:24]} {[%emt 00:00:05]} 27. Bb5 {[%clk 00:11:03]}
{[%emt 00:00:36]} Nd8 {[%clk 00:00:25]} {[%emt 00:00:10]} 28. Re8 {[%clk
00:10:29]} {[%emt 00:00:42]} Rxe8 {[%clk 00:00:29]} {[%emt 00:00:09]} 29. Rxe8
{[%clk 00:10:28]} {[%emt 00:00:10]} Ne6 {[%clk 00:00:32]} {[%emt 00:00:07]} 30.
Bd7 {[%clk 00:10:07]} {[%emt 00:00:31]} Nf8 {[%clk 00:00:38]} {[%emt 00:00:05]}
31. Bc6 {[%clk 00:09:47]} {[%emt 00:00:28]} Ne6 {[%clk 00:00:39]} {[%emt
00:00:11]} 32. Ra8 {[%clk 00:09:09]} {[%emt 00:00:46]} Nf4 {[%clk 00:00:40]}
{[%emt 00:00:11]} 33. Rxa7 {[%clk 00:08:59]} {[%emt 00:00:19]} Ke6 {[%clk
00:00:42]} {[%emt 00:00:09]} 34. h4 {[%clk 00:08:36]} {[%emt 00:00:33]} Kf5
{[%clk 00:00:41]} {[%emt 00:00:11]} 35. f3 {[%clk 00:08:22]} {[%emt 00:00:23]}
Ke6 {[%clk 00:00:21]} {[%emt 00:00:31]} 36. Ra8 {[%clk 00:08:04]} {[%emt
00:00:27]} f5 {[%clk 00:00:23]} {[%emt 00:00:09]} 37. Rh8 {[%clk 00:07:16]}
{[%emt 00:00:57]} Ng6 {[%clk 00:00:22]} {[%emt 00:00:11]} 38. Rh6 {[%clk
00:07:17]} {[%emt 00:00:09]} Kf7 {[%clk 00:00:31]} {[%emt 00:00:02]} 39. Be8+
{[%clk 00:07:03]} {[%emt 00:00:24]} Kxe8 {[%clk 00:00:33]} {[%emt 00:00:08]} 40.
Rxg6 {[%clk 00:07:11]} {[%emt 00:00:02]} Kf7 {[%clk 00:00:41]} {[%emt
00:00:02]} 41. Rg2 {[%clk 00:06:57]} {[%emt 00:00:23]} Be7 {[%clk 00:00:39]}
{[%emt 00:00:13]} 42. h5 {[%clk 00:07:04]} {[%emt 00:00:03]} Bf8 {[%clk
00:00:37]} {[%emt 00:00:12]} 43. Ke2 {[%clk 00:07:04]} {[%emt 00:00:08]} Bh6
{[%clk 00:00:35]} {[%emt 00:00:14]} 44. Kd3 {[%clk 00:07:04]} {[%emt 00:00:09]}
c5 {[%clk 00:00:31]} {[%emt 00:00:16]} 45. dxc5 {[%clk 00:06:45]} {[%emt
00:00:28]} bxc5 {[%clk 00:00:39]} {[%emt 00:00:02]} 46. a4 {[%clk 00:06:53]}
{[%emt 00:00:01]} Bf4 {[%clk 00:00:30]} {[%emt 00:00:19]} 47. a5 {[%clk
00:06:52]} {[%emt 00:00:11]} Be5 {[%clk 00:00:21]} {[%emt 00:00:20]} 48. h6
{[%clk 00:06:52]} {[%emt 00:00:10]} c4+ {[%clk 00:00:26]} {[%emt 00:00:05]} 49.
Ke2 {[%clk 00:06:47]} {[%emt 00:00:11]} Bxc3 {[%clk 00:00:18]} {[%emt
00:00:21]} 50. h7 {[%clk 00:06:55]} {[%emt 00:00:02]} d4 {[%clk 00:00:20]}
{[%emt 00:00:09]} 51. Rg8 {[%clk 00:06:51]} {[%emt 00:00:14]} f4 {[%clk
00:00:18]} {[%emt 00:00:12]} 52. h8=Q {[%clk 00:06:33]} {[%emt 00:00:26]} d3+
{[%clk 00:00:25]} {[%emt 00:00:04]} 53. cxd3 {[%clk 00:06:42]} {[%emt
00:00:02]} cxd3+ {[%clk 00:00:28]} {[%emt 00:00:07]} 54. Kxd3 {[%clk 00:06:47]}
{[%emt 00:00:04]} Ke6 {[%clk 00:00:29]} {[%emt 00:00:09]} 55. Kxc3 {[%clk
00:06:47]} {[%emt 00:00:11]} Kd5 {[%clk 00:00:36]} {[%emt 00:00:03]} 56. Rg5+
{[%clk 00:06:55]} {[%emt 00:00:02]} Ke6 {[%clk 00:00:43]} {[%emt 00:00:03]} 57.
Qh6+ {[%clk 00:07:04]} 1-0



[ePGN "0.1;DGT LiveChess/2.2.6"]